[Event "Titled Tuesday Blitz July 26 Late 2022"]
[White "Havanecz, Bianka"]
[Black "Jin, Ashton"]
[WhiteFideId "704814"]
[BlackFideId "30931908"]
[WhiteElo "2303"]
[BlackElo "2483"]
[Result "0-1"]
[Round "04"]
[TimeControl "180+1"]
[Date "2022.07.27"]
[WhiteClock "0:00:07"]
[BlackClock "0:00:03"]

1. d4 {[%clk 0:03:00]}  Nf6 {[%clk 0:02:59]} 2. c4 {[%clk 0:03:00]}  g6 {[%clk 0:03:00]} 3. Nc3 {[%clk 0:03:01]}  d5 {[%clk 0:03:00]} 4. e4 {[%clk 0:03:01]}  dxe4 {[%clk 0:02:58]} 5. Nge2 {[%clk 0:02:56]}  Bg7 {[%clk 0:02:51]} 6. h3 {[%clk 0:02:54]}  O-O {[%clk 0:02:50]} 7. Be3 {[%clk 0:02:53]}  c5 {[%clk 0:02:41]} 8. d5 {[%clk 0:02:51]}  Nbd7 {[%clk 0:02:24]} 9. Ng3 {[%clk 0:02:45]}  a6 {[%clk 0:02:13]} 10. a4 {[%clk 0:02:39]}  Qa5 {[%clk 0:02:10]} 11. Qc2 {[%clk 0:02:34]}  b5 {[%clk 0:02:04]} 12. Bd2 {[%clk 0:02:16]}  Qc7 {[%clk 0:01:29]} 13. axb5 {[%clk 0:02:10]}  Ne5 {[%clk 0:01:30]} 14. Ncxe4 {[%clk 0:01:47]}  Nxe4 {[%clk 0:01:28]} 15. Qxe4 {[%clk 0:01:38]}  Bb7 {[%clk 0:01:13]} 16. bxa6 {[%clk 0:01:21]}  Rxa6 {[%clk 0:01:13]} 17. Rxa6 {[%clk 0:01:19]}  Bxa6 {[%clk 0:01:14]} 18. Be2 {[%clk 0:01:15]}  Rb8 {[%clk 0:00:48]} 19. Bc3 {[%clk 0:00:53]}  Nd7 {[%clk 0:00:48]} 20. Qc2 {[%clk 0:00:35]}  Bxc3+ {[%clk 0:00:42]} 21. Qxc3 {[%clk 0:00:34]}  Qe5 {[%clk 0:00:42]} 22. O-O {[%clk 0:00:24]}  Rxb2 {[%clk 0:00:39]} 23. Qa5 {[%clk 0:00:22]}  Rb6 {[%clk 0:00:30]} 24. Bg4 {[%clk 0:00:16]}  f5 {[%clk 0:00:29]} 25. Re1 {[%clk 0:00:16]}  Qd6 {[%clk 0:00:24]} 26. Be2 {[%clk 0:00:16]}  Ne5 {[%clk 0:00:24]} 27. Qc3 {[%clk 0:00:14]}  Rb4 {[%clk 0:00:22]} 28. Ra1 {[%clk 0:00:11]}  Bxc4 {[%clk 0:00:20]} 29. Ra8+ {[%clk 0:00:11]}  Kf7 {[%clk 0:00:19]} 30. Bxc4 {[%clk 0:00:11]}  Rxc4 {[%clk 0:00:19]} 31. Qa3 {[%clk 0:00:10]}  Qxd5 {[%clk 0:00:19]} 32. Ne2 {[%clk 0:00:07]}  Qd1+ {[%clk 0:00:17]} 33. Kh2 {[%clk 0:00:07]}  Qxe2 {[%clk 0:00:18]} 34. Qg3 {[%clk 0:00:07]}  f4 {[%clk 0:00:16]} 35. Qh4 {[%clk 0:00:07]}  h5 {[%clk 0:00:15]} 36. Qg5 {[%clk 0:00:06]}  Nf3+ {[%clk 0:00:15]} 37. gxf3 {[%clk 0:00:06]}  Qxf2+ {[%clk 0:00:16]} 38. Qg2 {[%clk 0:00:06]}  Qxg2+ {[%clk 0:00:16]} 39. Kxg2 {[%clk 0:00:07]}  Rc2+ {[%clk 0:00:16]} 40. Kf1 {[%clk 0:00:07]}  Ke6 {[%clk 0:00:16]} 41. Rg8 {[%clk 0:00:07]}  Kf7 {[%clk 0:00:15]} 42. Rc8 {[%clk 0:00:07]}  Rh2 {[%clk 0:00:15]} 43. Rxc5 {[%clk 0:00:06]}  Rxh3 {[%clk 0:00:15]} 44. Kg2 {[%clk 0:00:07]}  Rg3+ {[%clk 0:00:15]} 45. Kf2 {[%clk 0:00:07]}  Kf6 {[%clk 0:00:16]} 46. Rc6+ {[%clk 0:00:07]}  e6 {[%clk 0:00:16]} 47. Rc4 {[%clk 0:00:08]}  g5 {[%clk 0:00:16]} 48. Rc8 {[%clk 0:00:08]}  h4 {[%clk 0:00:17]} 49. Rf8+ {[%clk 0:00:08]}  Ke5 {[%clk 0:00:17]} 50. Rh8 {[%clk 0:00:09]}  h3 {[%clk 0:00:17]} 51. Rh6 {[%clk 0:00:09]}  Rg2+ {[%clk 0:00:16]} 52. Kf1 {[%clk 0:00:09]}  Rg3 {[%clk 0:00:16]} 53. Kf2 {[%clk 0:00:09]}  Kf5 {[%clk 0:00:16]} 54. Rh8 {[%clk 0:00:09]}  Rg2+ {[%clk 0:00:14]} 55. Kf1 {[%clk 0:00:09]}  g4 {[%clk 0:00:14]} 56. fxg4+ {[%clk 0:00:08]}  Kxg4 {[%clk 0:00:14]} 57. Rg8+ {[%clk 0:00:09]}  Kf3 {[%clk 0:00:14]} 58. Rh8 {[%clk 0:00:09]}  h2 {[%clk 0:00:12]} 59. Rh3+ {[%clk 0:00:07]}  Rg3 {[%clk 0:00:12]} 60. Rxh2 {[%clk 0:00:08]}  e5 {[%clk 0:00:10]} 61. Ra2 {[%clk 0:00:08]}  e4 {[%clk 0:00:09]} 62. Rf2+ {[%clk 0:00:06]}  Kg4 {[%clk 0:00:09]} 63. Re2 {[%clk 0:00:07]}  e3 {[%clk 0:00:07]} 64. Ra2 {[%clk 0:00:07]}  Rh3 {[%clk 0:00:06]} 65. Kg1 {[%clk 0:00:06]}  Kf3 {[%clk 0:00:04]} 66. Rg2 {[%clk 0:00:04]}  Rg3 {[%clk 0:00:02]} 67. Rxg3+ {[%clk 0:00:04]}  fxg3 {[%clk 0:00:02]} 68. Kf1 {[%clk 0:00:05]}  g2+ {[%clk 0:00:02]} 69. Kg1 {[%clk 0:00:05]}  e2 {[%clk 0:00:03]} 70. Kh2 {[%clk 0:00:06]}  g1=Q+ {[%clk 0:00:03]} 71. Kh3 {[%clk 0:00:07]}  Qg3# {[%clk 0:00:03]} 0-1


[Site "https://www.chess.com"]

[Event "Titled Tuesday Blitz July 26 Late 2022"]
[White "Holt, Conrad"]
[Black "Grischuk, Alexander"]
[WhiteFideId "2034387"]
[BlackFideId "4126025"]
[WhiteElo "2586"]
[BlackElo "2762"]
[Result "0-1"]
[Round "04"]
[TimeControl "180+1"]
[Date "2022.07.26"]
[WhiteClock "0:00:17"]
[BlackClock "0:00:22"]

1. d4 {[%clk 0:03:00]}  Nf6 {[%clk 0:03:00]} 2. c4 {[%clk 0:03:01]}  e6 {[%clk 0:03:00]} 3. Nc3 {[%clk 0:02:59]}  Bb4 {[%clk 0:02:59]} 4. Qc2 {[%clk 0:03:00]}  d6 {[%clk 0:02:50]} 5. e4 {[%clk 0:02:54]}  Nc6 {[%clk 0:02:31]} 6. Nf3 {[%clk 0:02:51]}  e5 {[%clk 0:02:29]} 7. d5 {[%clk 0:02:48]}  Bxc3+ {[%clk 0:02:23]} 8. Qxc3 {[%clk 0:02:46]}  Ne7 {[%clk 0:02:23]} 9. Bd3 {[%clk 0:02:44]}  Ng6 {[%clk 0:02:08]} 10. O-O {[%clk 0:02:41]}  Bg4 {[%clk 0:02:05]} 11. Bc2 {[%clk 0:02:38]}  O-O {[%clk 0:02:02]} 12. h3 {[%clk 0:02:37]}  Bd7 {[%clk 0:02:01]} 13. c5 {[%clk 0:02:37]}  Qe7 {[%clk 0:01:47]} 14. Be3 {[%clk 0:02:26]}  Nh5 {[%clk 0:01:46]} 15. Bg5 {[%clk 0:02:14]}  f6 {[%clk 0:01:46]} 16. Be3 {[%clk 0:02:10]}  Nhf4 {[%clk 0:01:45]} 17. Kh2 {[%clk 0:02:09]}  f5 {[%clk 0:01:44]} 18. Qb3 {[%clk 0:01:42]}  b6 {[%clk 0:01:34]} 19. c6 {[%clk 0:01:41]}  fxe4 {[%clk 0:01:29]} 20. Bxe4 {[%clk 0:01:40]}  Bf5 {[%clk 0:01:30]} 21. Nd2 {[%clk 0:01:35]}  Qh4 {[%clk 0:01:27]} 22. Bxf5 {[%clk 0:01:23]}  Rxf5 {[%clk 0:01:27]} 23. Qc4 {[%clk 0:01:19]}  Raf8 {[%clk 0:01:22]} 24. Rad1 {[%clk 0:01:11]}  Qh5 {[%clk 0:01:04]} 25. Ne4 {[%clk 0:01:04]}  Nh4 {[%clk 0:00:29]} 26. Bxf4 {[%clk 0:00:39]}  Rxf4 {[%clk 0:00:30]} 27. f3 {[%clk 0:00:39]}  Nxf3+ {[%clk 0:00:25]} 28. gxf3 {[%clk 0:00:35]}  Rxf3 {[%clk 0:00:24]} 29. Ng3 {[%clk 0:00:29]}  Rf2+ {[%clk 0:00:24]} 30. Kg1 {[%clk 0:00:20]}  Qf3 {[%clk 0:00:24]} 31. Rxf2 {[%clk 0:00:17]}  Qxf2+ {[%clk 0:00:25]} 32. Kh1 {[%clk 0:00:18]}  Qf3+ {[%clk 0:00:23]} 33. Kh2 {[%clk 0:00:17]}  Qxd1 {[%clk 0:00:22]} 0-1


[Site "https://www.chess.com"]

[Event "Titled Tuesday Blitz July 26 Late 2022"]
[White "Howell, David W L"]
[Black "Katz, Alexander"]
[WhiteFideId "410608"]
[BlackFideId "2039796"]
[WhiteElo "2559"]
[BlackElo "2386"]
[Result "0-1"]
[Round "04"]
[TimeControl "180+1"]
[Date "2022.07.26"]
[WhiteClock "0:00:02"]
[BlackClock "0:00:02"]

1. e4 {[%clk 0:02:47]}  c6 {[%clk 0:02:59]} 2. Bc4 {[%clk 0:02:40]}  d5 {[%clk 0:02:57]} 3. Bb3 {[%clk 0:02:40]}  e6 {[%clk 0:02:44]} 4. d3 {[%clk 0:02:37]}  Nf6 {[%clk 0:02:43]} 5. Qe2 {[%clk 0:02:35]}  Be7 {[%clk 0:02:42]} 6. Nf3 {[%clk 0:02:35]}  O-O {[%clk 0:02:42]} 7. O-O {[%clk 0:02:34]}  Nbd7 {[%clk 0:02:41]} 8. Re1 {[%clk 0:02:32]}  a5 {[%clk 0:02:40]} 9. c3 {[%clk 0:02:25]}  b6 {[%clk 0:02:36]} 10. Nbd2 {[%clk 0:02:18]}  Ba6 {[%clk 0:02:33]} 11. e5 {[%clk 0:02:13]}  Ne8 {[%clk 0:02:31]} 12. Nf1 {[%clk 0:02:10]}  c5 {[%clk 0:02:26]} 13. Ng3 {[%clk 0:02:02]}  c4 {[%clk 0:01:47]} 14. dxc4 {[%clk 0:02:00]}  a4 {[%clk 0:01:43]} 15. Bxa4 {[%clk 0:01:56]}  Bxc4 {[%clk 0:01:42]} 16. Qd1 {[%clk 0:01:56]}  Nc5 {[%clk 0:01:39]} 17. Bc2 {[%clk 0:01:49]}  Rxa2 {[%clk 0:01:37]} 18. Rxa2 {[%clk 0:01:48]}  Bxa2 {[%clk 0:01:37]} 19. b3 {[%clk 0:01:38]}  Nc7 {[%clk 0:01:29]} 20. Nd4 {[%clk 0:01:35]}  Qd7 {[%clk 0:01:28]} 21. Qe2 {[%clk 0:01:27]}  Ra8 {[%clk 0:01:26]} 22. Bd2 {[%clk 0:01:25]}  Ra3 {[%clk 0:01:18]} 23. Bc1 {[%clk 0:01:21]}  Ra8 {[%clk 0:01:15]} 24. Nh5 {[%clk 0:01:17]}  g6 {[%clk 0:01:13]} 25. Nf6+ {[%clk 0:01:08]}  Bxf6 {[%clk 0:01:12]} 26. exf6 {[%clk 0:01:09]}  Ne8 {[%clk 0:01:09]} 27. Bg5 {[%clk 0:01:02]}  Nd6 {[%clk 0:01:04]} 28. f3 {[%clk 0:00:59]}  b5 {[%clk 0:00:49]} 29. Bh4 {[%clk 0:00:57]}  b4 {[%clk 0:00:44]} 30. cxb4 {[%clk 0:00:57]}  Na6 {[%clk 0:00:45]} 31. Qd2 {[%clk 0:00:56]}  Qc8 {[%clk 0:00:41]} 32. Bg3 {[%clk 0:00:54]}  Ne8 {[%clk 0:00:38]} 33. Be5 {[%clk 0:00:53]}  Qb7 {[%clk 0:00:37]} 34. b5 {[%clk 0:00:49]}  Nc5 {[%clk 0:00:32]} 35. Nc6 {[%clk 0:00:21]}  Nd7 {[%clk 0:00:15]} 36. Qh6 {[%clk 0:00:15]}  Nexf6 {[%clk 0:00:05]} 37. Ne7+ {[%clk 0:00:12]}  Kh8 {[%clk 0:00:04]} 38. Bd4 {[%clk 0:00:11]}  e5 {[%clk 0:00:02]} 39. Rxe5 {[%clk 0:00:08]}  Nxe5 {[%clk 0:00:02]} 40. Bxe5 {[%clk 0:00:09]}  Qb6+ {[%clk 0:00:03]} 41. Kh1 {[%clk 0:00:08]}  Bxb3 {[%clk 0:00:02]} 42. Bxb3 {[%clk 0:00:05]}  Qe6 {[%clk 0:00:02]} 43. Qg5 {[%clk 0:00:05]}  Kg7 {[%clk 0:00:02]} 44. Bxd5 {[%clk 0:00:04]}  Ra1+ {[%clk 0:00:01]} 45. Bxa1 {[%clk 0:00:02]}  Qe1# {[%clk 0:00:02]} 0-1


[Site "https://www.chess.com"]

[Event "Titled Tuesday Blitz July 26 Late 2022"]
[White "Ismagilov, Damir"]
[Black "Karas, Marek"]
[WhiteFideId "34199982"]
[BlackFideId "14928558"]
[WhiteElo "2138"]
[BlackElo "2250"]
[Result "1-0"]
[Round "04"]
[TimeControl "180+1"]
[Date "2022.07.27"]
[WhiteClock "0:01:12"]
[BlackClock "0:00:06"]

1. d4 {[%clk 0:03:00]}  Nf6 {[%clk 0:02:59]} 2. Nf3 {[%clk 0:03:01]}  e6 {[%clk 0:02:59]} 3. Bg5 {[%clk 0:03:00]}  c5 {[%clk 0:02:57]} 4. d5 {[%clk 0:03:00]}  h6 {[%clk 0:02:48]} 5. Bxf6 {[%clk 0:02:59]}  Qxf6 {[%clk 0:02:49]} 6. Nc3 {[%clk 0:02:57]}  d6 {[%clk 0:02:41]} 7. e4 {[%clk 0:02:55]}  a6 {[%clk 0:02:39]} 8. a4 {[%clk 0:02:54]}  e5 {[%clk 0:02:36]} 9. Be2 {[%clk 0:02:49]}  g6 {[%clk 0:02:36]} 10. O-O {[%clk 0:02:48]}  Bg7 {[%clk 0:02:36]} 11. Nd2 {[%clk 0:02:47]}  Qd8 {[%clk 0:02:28]} 12. Nc4 {[%clk 0:02:45]}  O-O {[%clk 0:02:28]} 13. a5 {[%clk 0:02:42]}  Qc7 {[%clk 0:02:14]} 14. Nb6 {[%clk 0:02:31]}  Ra7 {[%clk 0:02:14]} 15. Qd2 {[%clk 0:02:29]}  Nd7 {[%clk 0:02:10]} 16. Nc4 {[%clk 0:02:21]}  f5 {[%clk 0:02:02]} 17. f3 {[%clk 0:02:19]}  f4 {[%clk 0:02:00]} 18. Kh1 {[%clk 0:02:05]}  g5 {[%clk 0:01:59]} 19. Rg1 {[%clk 0:02:00]}  Nf6 {[%clk 0:01:48]} 20. g4 {[%clk 0:01:57]}  fxg3 {[%clk 0:01:42]} 21. hxg3 {[%clk 0:01:55]}  Ne8 {[%clk 0:01:35]} 22. Nd1 {[%clk 0:01:46]}  Qf7 {[%clk 0:01:31]} 23. g4 {[%clk 0:01:40]}  Qf4 {[%clk 0:01:23]} 24. Qxf4 {[%clk 0:01:34]}  exf4 {[%clk 0:01:14]} 25. Nf2 {[%clk 0:01:29]}  Bd4 {[%clk 0:01:09]} 26. Kg2 {[%clk 0:01:25]}  Bd7 {[%clk 0:01:07]} 27. Rh1 {[%clk 0:01:19]}  Kg7 {[%clk 0:01:03]} 28. c3 {[%clk 0:01:17]}  Bxf2 {[%clk 0:00:59]} 29. Kxf2 {[%clk 0:01:18]}  Bb5 {[%clk 0:00:56]} 30. Nb6 {[%clk 0:01:17]}  Bxe2 {[%clk 0:00:51]} 31. Kxe2 {[%clk 0:01:18]}  Nf6 {[%clk 0:00:49]} 32. b4 {[%clk 0:01:16]}  cxb4 {[%clk 0:00:24]} 33. cxb4 {[%clk 0:01:16]}  Rf7 {[%clk 0:00:21]} 34. Rac1 {[%clk 0:01:16]}  Nd7 {[%clk 0:00:20]} 35. Nc8 {[%clk 0:01:13]}  Ra8 {[%clk 0:00:19]} 36. Nxd6 {[%clk 0:01:13]}  Rff8 {[%clk 0:00:19]} 37. Nf5+ {[%clk 0:01:13]}  Rxf5 {[%clk 0:00:06]} 38. gxf5 {[%clk 0:01:12]} 1-0


[Site "https://www.chess.com"]

[Event "Titled Tuesday Blitz July 26 Late 2022"]
[White "Kozin, Yuri"]
[Black "Ernst, Sipke"]
[WhiteFideId "4129920"]
[BlackFideId "1004689"]
[WhiteElo "2532"]
[BlackElo "2436"]
[Result "0-1"]
[Round "04"]
[TimeControl "180+1"]
[Date "2022.07.26"]
[WhiteClock "0:00:06"]
[BlackClock "0:01:04"]

1. e4 {[%clk 0:03:00]}  e5 {[%clk 0:02:59]} 2. Nf3 {[%clk 0:02:59]}  Nc6 {[%clk 0:03:00]} 3. Bb5 {[%clk 0:02:58]}  Nf6 {[%clk 0:02:58]} 4. d3 {[%clk 0:02:55]}  Bc5 {[%clk 0:02:57]} 5. O-O {[%clk 0:02:55]}  d6 {[%clk 0:02:55]} 6. Be3 {[%clk 0:02:55]}  Bb6 {[%clk 0:02:55]} 7. Nc3 {[%clk 0:02:51]}  Bg4 {[%clk 0:02:53]} 8. h3 {[%clk 0:02:50]}  Bh5 {[%clk 0:02:53]} 9. a4 {[%clk 0:02:38]}  O-O {[%clk 0:02:48]} 10. Bxc6 {[%clk 0:02:38]}  bxc6 {[%clk 0:02:48]} 11. a5 {[%clk 0:02:38]}  Bd4 {[%clk 0:02:45]} 12. Bxd4 {[%clk 0:01:56]}  exd4 {[%clk 0:02:45]} 13. Nb1 {[%clk 0:01:56]}  Rb8 {[%clk 0:02:36]} 14. b3 {[%clk 0:01:54]}  Nd7 {[%clk 0:02:35]} 15. Nbd2 {[%clk 0:01:47]}  c5 {[%clk 0:02:31]} 16. Qe1 {[%clk 0:01:43]}  Re8 {[%clk 0:02:20]} 17. Nh2 {[%clk 0:01:36]}  f5 {[%clk 0:02:16]} 18. f3 {[%clk 0:01:25]}  f4 {[%clk 0:02:13]} 19. Nc4 {[%clk 0:01:19]}  Qg5 {[%clk 0:02:07]} 20. c3 {[%clk 0:01:15]}  Rxb3 {[%clk 0:02:03]} 21. cxd4 {[%clk 0:01:16]}  cxd4 {[%clk 0:02:02]} 22. Rb1 {[%clk 0:01:13]}  Reb8 {[%clk 0:01:57]} 23. Rxb3 {[%clk 0:01:10]}  Rxb3 {[%clk 0:01:58]} 24. Qd1 {[%clk 0:00:55]}  Nc5 {[%clk 0:01:56]} 25. a6 {[%clk 0:00:39]}  Bf7 {[%clk 0:01:52]} 26. Na5 {[%clk 0:00:33]}  Rxd3 {[%clk 0:01:52]} 27. Qb1 {[%clk 0:00:28]}  h5 {[%clk 0:01:17]} 28. Qb8+ {[%clk 0:00:20]}  Kh7 {[%clk 0:01:18]} 29. Qxc7 {[%clk 0:00:18]}  Rd2 {[%clk 0:01:15]} 30. Rf2 {[%clk 0:00:17]}  Rxf2 {[%clk 0:01:06]} 31. Kxf2 {[%clk 0:00:16]}  Qg3+ {[%clk 0:01:06]} 32. Kg1 {[%clk 0:00:09]}  Be6 {[%clk 0:01:05]} 33. Qxd6 {[%clk 0:00:06]}  Bxh3 {[%clk 0:01:04]} 0-1


[Site "https://www.chess.com"]

[Event "Titled Tuesday Blitz July 26 Late 2022"]
[White "Krishnan, Varun"]
[Black "Toncheva, Nadya"]
[WhiteFideId "5054508"]
[BlackFideId "2924056"]
[WhiteElo "2725"]
[BlackElo "1888"]
[Result "1/2-1/2"]
[Round "04"]
[TimeControl "180+1"]
[Date "2022.07.26"]
[WhiteClock "0:00:07"]
[BlackClock "0:00:03"]

1. d4 {[%clk 0:03:00]}  d5 {[%clk 0:03:00]} 2. c4 {[%clk 0:02:59]}  dxc4 {[%clk 0:03:01]} 3. Nf3 {[%clk 0:02:58]}  Nf6 {[%clk 0:03:01]} 4. e3 {[%clk 0:02:59]}  Bg4 {[%clk 0:03:00]} 5. Bxc4 {[%clk 0:02:57]}  e6 {[%clk 0:03:01]} 6. O-O {[%clk 0:02:57]}  a6 {[%clk 0:03:01]} 7. Nc3 {[%clk 0:02:55]}  Nc6 {[%clk 0:03:01]} 8. h3 {[%clk 0:02:54]}  Bh5 {[%clk 0:03:01]} 9. Be2 {[%clk 0:02:49]}  Bd6 {[%clk 0:03:01]} 10. a3 {[%clk 0:02:34]}  O-O {[%clk 0:03:00]} 11. b4 {[%clk 0:02:34]}  Re8 {[%clk 0:02:58]} 12. Bb2 {[%clk 0:02:31]}  Qe7 {[%clk 0:02:52]} 13. Rc1 {[%clk 0:02:23]}  Rad8 {[%clk 0:02:50]} 14. Qb3 {[%clk 0:02:16]}  Bg6 {[%clk 0:02:07]} 15. Rfd1 {[%clk 0:02:13]}  e5 {[%clk 0:02:04]} 16. Na4 {[%clk 0:01:57]}  exd4 {[%clk 0:02:00]} 17. Nxd4 {[%clk 0:01:53]}  Nxd4 {[%clk 0:01:57]} 18. Bxd4 {[%clk 0:01:51]}  Ne4 {[%clk 0:01:39]} 19. Nc5 {[%clk 0:01:33]}  Bxc5 {[%clk 0:01:28]} 20. bxc5 {[%clk 0:01:33]}  Qh4 {[%clk 0:01:22]} 21. Rf1 {[%clk 0:01:28]}  Nd2 {[%clk 0:01:21]} 22. Qxb7 {[%clk 0:01:24]}  Nxf1 {[%clk 0:01:20]} 23. Bxf1 {[%clk 0:01:12]}  Qe7 {[%clk 0:00:59]} 24. Bxa6 {[%clk 0:01:01]}  Be4 {[%clk 0:00:57]} 25. Qb4 {[%clk 0:00:58]}  Ra8 {[%clk 0:00:47]} 26. Bf1 {[%clk 0:00:56]}  Reb8 {[%clk 0:00:39]} 27. Qc3 {[%clk 0:00:56]}  f6 {[%clk 0:00:34]} 28. Bd3 {[%clk 0:00:54]}  Bd5 {[%clk 0:00:30]} 29. Qc2 {[%clk 0:00:45]}  h6 {[%clk 0:00:27]} 30. Bc4 {[%clk 0:00:38]}  Qe6 {[%clk 0:00:20]} 31. Bxd5 {[%clk 0:00:35]}  Qxd5 {[%clk 0:00:21]} 32. Ra1 {[%clk 0:00:33]}  Qb3 {[%clk 0:00:20]} 33. Qg6 {[%clk 0:00:28]}  Qf7 {[%clk 0:00:18]} 34. Qe4 {[%clk 0:00:28]}  Ra4 {[%clk 0:00:14]} 35. Qc6 {[%clk 0:00:21]}  Rba8 {[%clk 0:00:13]} 36. Rb1 {[%clk 0:00:18]}  Rxa3 {[%clk 0:00:12]} 37. Rb7 {[%clk 0:00:17]}  R3a7 {[%clk 0:00:09]} 38. Rxa7 {[%clk 0:00:16]}  Rxa7 {[%clk 0:00:10]} 39. Qe4 {[%clk 0:00:16]}  Ra2 {[%clk 0:00:05]} 40. c6 {[%clk 0:00:15]}  Ra3 {[%clk 0:00:05]} 41. Qf5 {[%clk 0:00:14]}  Ra4 {[%clk 0:00:05]} 42. Qc8+ {[%clk 0:00:14]}  Kh7 {[%clk 0:00:05]} 43. Qf5+ {[%clk 0:00:14]}  Kg8 {[%clk 0:00:05]} 44. Qb5 {[%clk 0:00:14]}  Rc4 {[%clk 0:00:04]} 45. Qb8+ {[%clk 0:00:13]}  Kh7 {[%clk 0:00:04]} 46. Qb1+ {[%clk 0:00:14]}  Kg8 {[%clk 0:00:02]} 47. Qe4 {[%clk 0:00:12]}  Rc1+ {[%clk 0:00:02]} 48. Kh2 {[%clk 0:00:12]}  Qc4 {[%clk 0:00:02]} 49. Qe8+ {[%clk 0:00:08]}  Kh7 {[%clk 0:00:02]} 50. Qe4+ {[%clk 0:00:08]}  Kg8 {[%clk 0:00:02]} 51. Qe8+ {[%clk 0:00:07]}  Kh7 {[%clk 0:00:03]} 52. Qe4+ {[%clk 0:00:07]}  Kg8 {[%clk 0:00:03]} 1/2-1/2


[Site "https://www.chess.com"]

[Event "Titled Tuesday Blitz July 26 Late 2022"]
[White "Krstulovic, Alex"]
[Black "Wang, Isaac"]
[WhiteFideId "760056"]
[BlackFideId "30977185"]
[WhiteElo "2244"]
[BlackElo "2374"]
[Result "1-0"]
[Round "04"]
[TimeControl "180+1"]
[Date "2022.07.27"]
[WhiteClock "0:00:10"]
[BlackClock "0:00:07"]

1. e4 {[%clk 0:03:00]}  c5 {[%clk 0:02:58]} 2. Nf3 {[%clk 0:03:00]}  Nc6 {[%clk 0:02:58]} 3. d4 {[%clk 0:03:00]}  cxd4 {[%clk 0:02:58]} 4. Nxd4 {[%clk 0:03:01]}  Nf6 {[%clk 0:02:59]} 5. Nc3 {[%clk 0:03:01]}  e5 {[%clk 0:02:58]} 6. Ndb5 {[%clk 0:03:01]}  d6 {[%clk 0:02:59]} 7. Bg5 {[%clk 0:02:55]}  a6 {[%clk 0:02:58]} 8. Na3 {[%clk 0:02:55]}  b5 {[%clk 0:02:57]} 9. Nd5 {[%clk 0:02:55]}  Be7 {[%clk 0:02:57]} 10. Bxf6 {[%clk 0:02:51]}  Bxf6 {[%clk 0:02:57]} 11. c4 {[%clk 0:02:52]}  b4 {[%clk 0:02:57]} 12. Nc2 {[%clk 0:02:51]}  O-O {[%clk 0:02:55]} 13. h4 {[%clk 0:02:40]}  a5 {[%clk 0:02:53]} 14. Nce3 {[%clk 0:02:26]}  Nd4 {[%clk 0:02:50]} 15. Bd3 {[%clk 0:02:26]}  Be6 {[%clk 0:02:46]} 16. Rc1 {[%clk 0:02:18]}  g6 {[%clk 0:02:43]} 17. h5 {[%clk 0:02:15]}  Bg5 {[%clk 0:02:41]} 18. Be2 {[%clk 0:01:50]}  Rc8 {[%clk 0:02:20]} 19. Bg4 {[%clk 0:01:40]}  f5 {[%clk 0:02:03]} 20. Bh3 {[%clk 0:01:32]}  Bxd5 {[%clk 0:01:53]} 21. Nxd5 {[%clk 0:01:18]}  Bxc1 {[%clk 0:01:39]} 22. Qxc1 {[%clk 0:01:19]}  f4 {[%clk 0:01:29]} 23. hxg6 {[%clk 0:01:16]}  Rc5 {[%clk 0:01:05]} 24. gxh7+ {[%clk 0:00:35]}  Kh8 {[%clk 0:01:04]} 25. Qd1 {[%clk 0:00:33]}  Rxc4 {[%clk 0:01:00]} 26. O-O {[%clk 0:00:33]}  Qg5 {[%clk 0:00:58]} 27. Qd3 {[%clk 0:00:31]}  Rc5 {[%clk 0:00:54]} 28. Qa6 {[%clk 0:00:30]}  Rc6 {[%clk 0:00:48]} 29. Qxa5 {[%clk 0:00:29]}  b3 {[%clk 0:00:39]} 30. a4 {[%clk 0:00:20]}  Ne2+ {[%clk 0:00:36]} 31. Kh2 {[%clk 0:00:19]}  Ng3 {[%clk 0:00:23]} 32. Re1 {[%clk 0:00:17]}  Nh5 {[%clk 0:00:17]} 33. Qb5 {[%clk 0:00:16]}  Rc2 {[%clk 0:00:16]} 34. Qb6 {[%clk 0:00:15]}  Rxb2 {[%clk 0:00:14]} 35. Qxd6 {[%clk 0:00:14]}  Qg7 {[%clk 0:00:13]} 36. Ne7 {[%clk 0:00:13]}  Rxf2 {[%clk 0:00:12]} 37. Nf5 {[%clk 0:00:13]}  Rxf5 {[%clk 0:00:11]} 38. exf5 {[%clk 0:00:12]}  Qg3+ {[%clk 0:00:10]} 39. Kh1 {[%clk 0:00:12]}  Rxg2 {[%clk 0:00:09]} 40. Qxe5+ {[%clk 0:00:11]}  Kxh7 {[%clk 0:00:09]} 41. Bxg2 {[%clk 0:00:11]}  f3 {[%clk 0:00:06]} 42. Qxg3 {[%clk 0:00:10]}  Nxg3+ {[%clk 0:00:06]} 43. Kh2 {[%clk 0:00:11]}  f2 {[%clk 0:00:06]} 44. Re7+ {[%clk 0:00:10]}  Kh6 {[%clk 0:00:06]} 45. Kxg3 {[%clk 0:00:10]}  b2 {[%clk 0:00:07]} 46. Rb7 {[%clk 0:00:10]}  f1=Q {[%clk 0:00:07]} 1-0


[Site "https://www.chess.com"]